[Event "Titled Tuesday Blitz March 21 Late 2023"]
[White "Shohat, Yotam"]
[Black "O`Gorman, Tom"]
[WhiteFideId "2813955"]
[BlackFideId "2508249"]
[WhiteElo "2226"]
[BlackElo "2271"]
[Result "1-0"]
[Round "10"]
[TimeControl "180+2"]
[Date "2023.03.21"]
[WhiteClock "0:00:05"]
[BlackClock "0:01:04"]

1. e4 {[%clk 0:03:00]}  e5 {[%clk 0:02:59]} 2. Nf3 {[%clk 0:03:00]}  Nc6 {[%clk 0:02:56]} 3. g3 {[%clk 0:02:57]}  Nf6 {[%clk 0:02:53]} 4. d3 {[%clk 0:02:57]}  d5 {[%clk 0:02:50]} 5. exd5 {[%clk 0:02:56]}  Nxd5 {[%clk 0:02:50]} 6. Bg2 {[%clk 0:02:55]}  Be7 {[%clk 0:02:51]} 7. O-O {[%clk 0:02:53]}  O-O {[%clk 0:02:51]} 8. Re1 {[%clk 0:02:47]}  Bf6 {[%clk 0:02:49]} 9. Bd2 {[%clk 0:02:39]}  g6 {[%clk 0:02:46]} 10. Nc3 {[%clk 0:02:37]}  Be6 {[%clk 0:02:46]} 11. Nxd5 {[%clk 0:02:32]}  Bxd5 {[%clk 0:02:45]} 12. c4 {[%clk 0:02:32]}  Be6 {[%clk 0:02:43]} 13. Bc3 {[%clk 0:02:32]}  Qd6 {[%clk 0:02:39]} 14. Qe2 {[%clk 0:01:53]}  Nd4 {[%clk 0:02:37]} 15. Bxd4 {[%clk 0:01:47]}  exd4 {[%clk 0:02:37]} 16. Nd2 {[%clk 0:01:48]}  c6 {[%clk 0:02:23]} 17. Ne4 {[%clk 0:01:40]}  Qe7 {[%clk 0:02:23]} 18. b4 {[%clk 0:01:40]}  Bg7 {[%clk 0:02:21]} 19. Nc5 {[%clk 0:01:39]}  Rfe8 {[%clk 0:02:14]} 20. Nxe6 {[%clk 0:01:34]}  Qxe6 {[%clk 0:02:07]} 21. Qxe6 {[%clk 0:01:34]}  Rxe6 {[%clk 0:02:08]} 22. Rxe6 {[%clk 0:01:34]}  fxe6 {[%clk 0:02:08]} 23. Rb1 {[%clk 0:01:23]}  Rc8 {[%clk 0:02:00]} 24. b5 {[%clk 0:01:14]}  cxb5 {[%clk 0:01:52]} 25. Bxb7 {[%clk 0:01:13]}  Rc7 {[%clk 0:01:43]} 26. Rxb5 {[%clk 0:01:12]}  Bf8 {[%clk 0:01:42]} 27. a4 {[%clk 0:01:04]}  Kf7 {[%clk 0:01:42]} 28. a5 {[%clk 0:01:03]}  Bc5 {[%clk 0:01:41]} 29. a6 {[%clk 0:01:03]}  Ke7 {[%clk 0:01:41]} 30. Kg2 {[%clk 0:00:59]}  Kd6 {[%clk 0:01:41]} 31. Kf3 {[%clk 0:00:53]}  Rf7+ {[%clk 0:01:39]} 32. Ke2 {[%clk 0:00:53]}  g5 {[%clk 0:01:39]} 33. h3 {[%clk 0:00:46]}  h5 {[%clk 0:01:38]} 34. Bf3 {[%clk 0:00:36]}  h4 {[%clk 0:01:37]} 35. gxh4 {[%clk 0:00:33]}  gxh4 {[%clk 0:01:38]} 36. Rb8 {[%clk 0:00:33]}  Rh7 {[%clk 0:01:33]} 37. Be4 {[%clk 0:00:28]}  Rf7 {[%clk 0:01:28]} 38. Rh8 {[%clk 0:00:24]}  Rf4 {[%clk 0:01:27]} 39. Rh7 {[%clk 0:00:24]}  Bb6 {[%clk 0:01:27]} 40. Rb7 {[%clk 0:00:21]}  Kc5 {[%clk 0:01:26]} 41. Re7 {[%clk 0:00:17]}  Rf6 {[%clk 0:01:25]} 42. Rh7 {[%clk 0:00:15]}  Rf4 {[%clk 0:01:24]} 43. Rg7 {[%clk 0:00:11]}  Kb4 {[%clk 0:01:20]} 44. Rg1 {[%clk 0:00:09]}  Rf7 {[%clk 0:01:14]} 45. Rb1+ {[%clk 0:00:08]}  Ka5 {[%clk 0:01:11]} 46. Bb7 {[%clk 0:00:07]}  Ka4 {[%clk 0:01:09]} 47. Rb5 {[%clk 0:00:07]}  Rg7 {[%clk 0:01:05]} 48. Rxb6 {[%clk 0:00:04]}  axb6 {[%clk 0:01:04]} 49. a7 {[%clk 0:00:05]} 1-0


[Site "https://www.chess.com"]

[Event "Titled Tuesday Blitz March 21 Late 2023"]
[White "Sai Krishna G V"]
[Black "cryptoguru02"]
[WhiteFideId "5028280"]
[WhiteElo "2359"]
[BlackElo "2520"]
[Result "1/2-1/2"]
[Round "10"]
[TimeControl "180+2"]
[Date "2023.03.21"]
[WhiteClock "0:00:14"]
[BlackClock "0:00:08"]

1. d4 {[%clk 0:02:57]}  d5 {[%clk 0:02:59]} 2. Nf3 {[%clk 0:02:57]}  Nf6 {[%clk 0:02:59]} 3. Bf4 {[%clk 0:02:57]}  g6 {[%clk 0:02:57]} 4. e3 {[%clk 0:02:54]}  Bg7 {[%clk 0:02:57]} 5. h4 {[%clk 0:02:54]}  c6 {[%clk 0:02:54]} 6. Nbd2 {[%clk 0:02:49]}  h5 {[%clk 0:02:50]} 7. Ng5 {[%clk 0:02:48]}  Bf5 {[%clk 0:02:48]} 8. Ndf3 {[%clk 0:02:48]}  Nbd7 {[%clk 0:02:47]} 9. Bd3 {[%clk 0:02:48]}  e6 {[%clk 0:02:45]} 10. Qd2 {[%clk 0:02:34]}  Ne4 {[%clk 0:02:37]} 11. Bxe4 {[%clk 0:02:32]}  dxe4 {[%clk 0:02:37]} 12. Ng1 {[%clk 0:02:24]}  e5 {[%clk 0:02:36]} 13. dxe5 {[%clk 0:02:19]}  Nxe5 {[%clk 0:02:36]} 14. Bxe5 {[%clk 0:02:12]}  Qxd2+ {[%clk 0:01:57]} 15. Kxd2 {[%clk 0:02:13]}  Bxe5 {[%clk 0:01:55]} 16. c3 {[%clk 0:02:13]}  f6 {[%clk 0:01:48]} 17. N5h3 {[%clk 0:02:13]}  O-O-O+ {[%clk 0:01:47]} 18. Kc2 {[%clk 0:02:12]}  Bg4 {[%clk 0:01:42]} 19. f4 {[%clk 0:01:58]}  exf3 {[%clk 0:01:28]} 20. gxf3 {[%clk 0:01:59]}  Be6 {[%clk 0:01:20]} 21. Ne2 {[%clk 0:01:59]}  Rd7 {[%clk 0:00:59]} 22. Nhf4 {[%clk 0:01:46]}  Bf7 {[%clk 0:00:53]} 23. Nd3 {[%clk 0:01:43]}  Rhd8 {[%clk 0:00:43]} 24. Rhd1 {[%clk 0:01:40]}  Bc7 {[%clk 0:00:34]} 25. b3 {[%clk 0:01:07]}  g5 {[%clk 0:00:34]} 26. hxg5 {[%clk 0:01:07]}  fxg5 {[%clk 0:00:34]} 27. Nf2 {[%clk 0:01:04]}  Bg6+ {[%clk 0:00:33]} 28. e4 {[%clk 0:01:04]}  g4 {[%clk 0:00:32]} 29. f4 {[%clk 0:00:55]}  Bb6 {[%clk 0:00:27]} 30. Nd4 {[%clk 0:00:43]}  Bxd4 {[%clk 0:00:25]} 31. cxd4 {[%clk 0:00:44]}  g3 {[%clk 0:00:19]} 32. f5 {[%clk 0:00:44]}  Bh7 {[%clk 0:00:18]} 33. Nh3 {[%clk 0:00:40]}  Rxd4 {[%clk 0:00:17]} 34. Ng5 {[%clk 0:00:35]}  Bg8 {[%clk 0:00:06]} 35. Rh1 {[%clk 0:00:35]}  Rd2+ {[%clk 0:00:06]} 36. Kc3 {[%clk 0:00:33]}  g2 {[%clk 0:00:05]} 37. Rxh5 {[%clk 0:00:17]}  Rd1 {[%clk 0:00:05]} 38. Rxd1 {[%clk 0:00:18]}  Rxd1 {[%clk 0:00:05]} 39. Rh8 {[%clk 0:00:18]}  g1=Q {[%clk 0:00:05]} 40. Rxg8+ {[%clk 0:00:18]}  Kc7 {[%clk 0:00:06]} 41. Ne6+ {[%clk 0:00:18]}  Kd6 {[%clk 0:00:04]} 42. Rxg1 {[%clk 0:00:19]}  Rxg1 {[%clk 0:00:05]} 43. Nd4 {[%clk 0:00:17]}  Rg3+ {[%clk 0:00:05]} 44. Kc4 {[%clk 0:00:16]}  Ke5 {[%clk 0:00:05]} 45. Ne2 {[%clk 0:00:13]}  Rg4 {[%clk 0:00:04]} 46. Nc3 {[%clk 0:00:13]}  Rg3 {[%clk 0:00:03]} 47. a4 {[%clk 0:00:12]}  b6 {[%clk 0:00:01]} 48. b4 {[%clk 0:00:12]}  a6 {[%clk 0:00:02]} 49. b5 {[%clk 0:00:11]}  cxb5+ {[%clk 0:00:03]} 50. axb5 {[%clk 0:00:11]}  axb5+ {[%clk 0:00:03]} 51. Nxb5 {[%clk 0:00:11]}  Kxe4 {[%clk 0:00:04]} 52. f6 {[%clk 0:00:12]}  Rf3 {[%clk 0:00:05]} 53. f7 {[%clk 0:00:12]}  Rxf7 {[%clk 0:00:04]} 54. Nd6+ {[%clk 0:00:12]}  Ke5 {[%clk 0:00:05]} 55. Nxf7+ {[%clk 0:00:13]}  Ke6 {[%clk 0:00:06]} 56. Ng5+ {[%clk 0:00:12]}  Kf5 {[%clk 0:00:06]} 57. Nf3 {[%clk 0:00:12]}  b5+ {[%clk 0:00:06]} 58. Kb4 {[%clk 0:00:12]}  Kf4 {[%clk 0:00:07]} 59. Nd4 {[%clk 0:00:13]}  Ke3 {[%clk 0:00:08]} 60. Nxb5 {[%clk 0:00:14]} 1/2-1/2


[Site "https://www.chess.com"]

[Event "Titled Tuesday Blitz March 21 Late 2023"]
[White "Lamard, Guillaume"]
[Black "Mazurkiewicz, Michal"]
[WhiteFideId "600261"]
[BlackFideId "1124943"]
[WhiteElo "2413"]
[BlackElo "2054"]
[Result "1-0"]
[Round "10"]
[TimeControl "180+2"]
[Date "2023.03.21"]
[WhiteClock "0:01:01"]
[BlackClock "0:00:08"]

1. d4 {[%clk 0:03:00]}  Nf6 {[%clk 0:02:59]} 2. Bf4 {[%clk 0:02:59]}  g6 {[%clk 0:02:58]} 3. Nc3 {[%clk 0:02:58]}  d5 {[%clk 0:02:58]} 4. e3 {[%clk 0:02:58]}  Bg7 {[%clk 0:02:59]} 5. Nb5 {[%clk 0:02:57]}  Na6 {[%clk 0:02:58]} 6. Nf3 {[%clk 0:02:55]}  O-O {[%clk 0:02:58]} 7. h3 {[%clk 0:02:55]}  c6 {[%clk 0:02:58]} 8. Nc3 {[%clk 0:02:56]}  Qb6 {[%clk 0:02:58]} 9. Rb1 {[%clk 0:02:55]}  c5 {[%clk 0:02:54]} 10. Be5 {[%clk 0:02:55]}  cxd4 {[%clk 0:02:51]} 11. Qxd4 {[%clk 0:02:36]}  Bf5 {[%clk 0:02:45]} 12. Bd3 {[%clk 0:02:05]}  Bxd3 {[%clk 0:02:38]} 13. cxd3 {[%clk 0:02:05]}  Qxd4 {[%clk 0:02:24]} 14. Nxd4 {[%clk 0:01:58]}  Nb4 {[%clk 0:01:59]} 15. Ke2 {[%clk 0:01:57]}  Nc6 {[%clk 0:01:58]} 16. Nxc6 {[%clk 0:01:58]}  bxc6 {[%clk 0:01:59]} 17. Rhc1 {[%clk 0:01:50]}  Rac8 {[%clk 0:01:53]} 18. Na4 {[%clk 0:01:49]}  Nd7 {[%clk 0:01:44]} 19. Bxg7 {[%clk 0:01:49]}  Kxg7 {[%clk 0:01:45]} 20. Nc5 {[%clk 0:01:49]}  Nxc5 {[%clk 0:01:39]} 21. Rxc5 {[%clk 0:01:50]}  Rc7 {[%clk 0:01:39]} 22. Rbc1 {[%clk 0:01:49]}  Rfc8 {[%clk 0:01:32]} 23. b4 {[%clk 0:01:47]}  a6 {[%clk 0:00:43]} 24. Ra5 {[%clk 0:01:47]}  Rb8 {[%clk 0:00:19]} 25. a3 {[%clk 0:01:45]}  Rb6 {[%clk 0:00:15]} 26. Rxd5 {[%clk 0:01:45]}  cxd5 {[%clk 0:00:15]} 27. Rxc7 {[%clk 0:01:45]}  e6 {[%clk 0:00:15]} 28. Kd2 {[%clk 0:01:38]}  Kf6 {[%clk 0:00:13]} 29. Kc3 {[%clk 0:01:31]}  h5 {[%clk 0:00:12]} 30. h4 {[%clk 0:01:29]}  e5 {[%clk 0:00:10]} 31. a4 {[%clk 0:01:24]}  Ke6 {[%clk 0:00:10]} 32. a5 {[%clk 0:01:22]}  Rd6 {[%clk 0:00:08]} 33. d4 {[%clk 0:01:18]}  e4 {[%clk 0:00:05]} 34. b5 {[%clk 0:01:18]}  axb5 {[%clk 0:00:05]} 35. Kb4 {[%clk 0:01:19]}  Rd8 {[%clk 0:00:01]} 36. a6 {[%clk 0:01:16]}  Ra8 {[%clk 0:00:01]} 37. a7 {[%clk 0:01:14]}  f5 {[%clk 0:00:02]} 38. Kxb5 {[%clk 0:01:14]}  f4 {[%clk 0:00:02]} 39. Kb6 {[%clk 0:01:09]}  f3 {[%clk 0:00:01]} 40. gxf3 {[%clk 0:01:06]}  exf3 {[%clk 0:00:02]} 41. Kb7 {[%clk 0:01:06]}  Rxa7+ {[%clk 0:00:02]} 42. Kxa7 {[%clk 0:01:05]}  Kf5 {[%clk 0:00:01]} 43. Rg7 {[%clk 0:00:59]}  Kg4 {[%clk 0:00:02]} 44. Rxg6+ {[%clk 0:00:59]}  Kxh4 {[%clk 0:00:03]} 45. Kb6 {[%clk 0:00:58]}  Kh3 {[%clk 0:00:04]} 46. Kc5 {[%clk 0:00:59]}  h4 {[%clk 0:00:04]} 47. Kxd5 {[%clk 0:00:59]}  Kh2 {[%clk 0:00:05]} 48. Ke4 {[%clk 0:00:59]}  h3 {[%clk 0:00:06]} 49. Kxf3 {[%clk 0:01:00]}  Kh1 {[%clk 0:00:07]} 50. Rh6 {[%clk 0:01:00]}  h2 {[%clk 0:00:07]} 51. Rxh2+ {[%clk 0:01:00]}  Kxh2 {[%clk 0:00:08]} 52. d5 {[%clk 0:01:01]} 1-0


[Site "https://www.chess.com"]

[Event "Titled Tuesday Blitz March 21 Late 2023"]
[White "Jovic, Stanoje"]
[Black "Ambartsumova, Karina"]
[WhiteFideId "905020"]
[BlackFideId "4166299"]
[WhiteElo "2236"]
[BlackElo "2300"]
[Result "1-0"]
[Round "10"]
[TimeControl "180+2"]
[Date "2023.03.21"]
[WhiteClock "0:00:11"]
[BlackClock "0:00:01"]

1. c4 {[%clk 0:03:00]}  Nf6 {[%clk 0:02:56]} 2. g3 {[%clk 0:03:01]}  g6 {[%clk 0:02:56]} 3. Bg2 {[%clk 0:03:01]}  Bg7 {[%clk 0:02:57]} 4. Nc3 {[%clk 0:03:01]}  O-O {[%clk 0:02:57]} 5. Nf3 {[%clk 0:03:02]}  d6 {[%clk 0:02:58]} 6. O-O {[%clk 0:03:02]}  e5 {[%clk 0:02:57]} 7. d3 {[%clk 0:03:02]}  c6 {[%clk 0:02:58]} 8. Rb1 {[%clk 0:03:02]}  h6 {[%clk 0:02:57]} 9. b4 {[%clk 0:03:02]}  Be6 {[%clk 0:02:57]} 10. a4 {[%clk 0:03:01]}  Qd7 {[%clk 0:02:58]} 11. b5 {[%clk 0:03:01]}  Bh3 {[%clk 0:02:58]} 12. bxc6 {[%clk 0:03:00]}  Nxc6 {[%clk 0:02:43]} 13. Bxh3 {[%clk 0:02:55]}  Qxh3 {[%clk 0:02:44]} 14. Rxb7 {[%clk 0:02:54]}  Ng4 {[%clk 0:02:11]} 15. Be3 {[%clk 0:02:40]}  f5 {[%clk 0:01:26]} 16. Rc7 {[%clk 0:02:17]}  Rac8 {[%clk 0:01:15]} 17. Rxc6 {[%clk 0:02:10]}  Rxc6 {[%clk 0:01:13]} 18. Nd5 {[%clk 0:02:09]}  Kh7 {[%clk 0:01:12]} 19. Qb3 {[%clk 0:01:52]}  Rf7 {[%clk 0:01:06]} 20. Qb8 {[%clk 0:01:46]}  Rf8 {[%clk 0:00:33]} 21. Qxa7 {[%clk 0:01:36]}  g5 {[%clk 0:00:25]} 22. Rb1 {[%clk 0:01:31]}  f4 {[%clk 0:00:17]} 23. Rb7 {[%clk 0:01:31]}  Rg8 {[%clk 0:00:17]} 24. Bd2 {[%clk 0:01:14]}  e4 {[%clk 0:00:18]} 25. dxe4 {[%clk 0:01:04]}  Rxc4 {[%clk 0:00:18]} 26. Ne7 {[%clk 0:00:47]}  fxg3 {[%clk 0:00:18]} 27. hxg3 {[%clk 0:00:44]}  Qh5 {[%clk 0:00:04]} 28. Nf5 {[%clk 0:00:40]}  Qg6 {[%clk 0:00:04]} 29. Ne7 {[%clk 0:00:23]}  Qxe4 {[%clk 0:00:04]} 30. Nxg8 {[%clk 0:00:20]}  Kxg8 {[%clk 0:00:01]} 31. Qa8+ {[%clk 0:00:18]}  Kh7 {[%clk 0:00:01]} 32. Qa7 {[%clk 0:00:17]}  Qg6 {[%clk 0:00:02]} 33. Qa6 {[%clk 0:00:12]}  Ne5 {[%clk 0:00:02]} 34. Nxe5 {[%clk 0:00:11]}  dxe5 {[%clk 0:00:02]} 35. Qxc4 {[%clk 0:00:12]}  Qd6 {[%clk 0:00:01]} 36. Qe4+ {[%clk 0:00:11]} 1-0


[Site "https://www.chess.com"]

[Event "Titled Tuesday Blitz March 21 Late 2023"]
[White "Hoffmann, Asa"]
[Black "Sielecki, Christof"]
[WhiteFideId "2001470"]
[BlackFideId "4620437"]
[WhiteElo "2117"]
[BlackElo "2443"]
[Result "1/2-1/2"]
[Round "10"]
[TimeControl "180+2"]
[Date "2023.03.21"]
[WhiteClock "0:00:22"]
[BlackClock "0:00:11"]

1. d4 {[%clk 0:02:58]}  d5 {[%clk 0:02:56]} 2. Bg5 {[%clk 0:02:57]}  h6 {[%clk 0:02:55]} 3. Bh4 {[%clk 0:02:56]}  c5 {[%clk 0:02:55]} 4. e3 {[%clk 0:02:56]}  cxd4 {[%clk 0:02:47]} 5. exd4 {[%clk 0:02:55]}  Qb6 {[%clk 0:02:44]} 6. b3 {[%clk 0:02:51]}  e5 {[%clk 0:02:42]} 7. Nf3 {[%clk 0:02:39]}  e4 {[%clk 0:02:42]} 8. Ne5 {[%clk 0:02:37]}  Nc6 {[%clk 0:02:40]} 9. Nxc6 {[%clk 0:02:27]}  bxc6 {[%clk 0:02:41]} 10. c3 {[%clk 0:02:25]}  Ne7 {[%clk 0:02:35]} 11. Be2 {[%clk 0:02:24]}  Nf5 {[%clk 0:02:34]} 12. Bg3 {[%clk 0:02:23]}  Nxg3 {[%clk 0:02:30]} 13. hxg3 {[%clk 0:02:23]}  Bd6 {[%clk 0:02:27]} 14. Nd2 {[%clk 0:02:20]}  O-O {[%clk 0:02:25]} 15. Nf1 {[%clk 0:02:19]}  f5 {[%clk 0:02:25]} 16. Qd2 {[%clk 0:02:16]}  f4 {[%clk 0:02:25]} 17. gxf4 {[%clk 0:02:15]}  Rxf4 {[%clk 0:02:18]} 18. Ne3 {[%clk 0:02:13]}  Be6 {[%clk 0:02:13]} 19. g3 {[%clk 0:02:10]}  Rf7 {[%clk 0:02:07]} 20. Bh5 {[%clk 0:02:03]}  Rf6 {[%clk 0:02:04]} 21. Bg4 {[%clk 0:02:03]}  Raf8 {[%clk 0:01:45]} 22. Bxe6+ {[%clk 0:02:00]}  Rxe6 {[%clk 0:01:46]} 23. O-O-O {[%clk 0:01:51]}  Qd8 {[%clk 0:01:21]} 24. Kb1 {[%clk 0:01:43]}  Ref6 {[%clk 0:01:14]} 25. Rhf1 {[%clk 0:01:40]}  Qd7 {[%clk 0:01:04]} 26. c4 {[%clk 0:01:38]}  dxc4 {[%clk 0:00:38]} 27. Nxc4 {[%clk 0:01:38]}  Bc7 {[%clk 0:00:38]} 28. Rde1 {[%clk 0:01:29]}  Qd5 {[%clk 0:00:36]} 29. Qe3 {[%clk 0:01:22]}  Re6 {[%clk 0:00:27]} 30. f4 {[%clk 0:01:18]}  Bb6 {[%clk 0:00:26]} 31. Rd1 {[%clk 0:01:18]}  Rd8 {[%clk 0:00:25]} 32. Qe2 {[%clk 0:01:06]}  Bxd4 {[%clk 0:00:21]} 33. f5 {[%clk 0:01:06]}  Ree8 {[%clk 0:00:19]} 34. f6 {[%clk 0:01:02]}  Rf8 {[%clk 0:00:17]} 35. fxg7 {[%clk 0:01:00]}  Kxg7 {[%clk 0:00:16]} 36. Qg4+ {[%clk 0:01:00]}  Qg5 {[%clk 0:00:16]} 37. Qxe4 {[%clk 0:00:52]}  Bf6 {[%clk 0:00:15]} 38. g4 {[%clk 0:00:49]}  Qg6 {[%clk 0:00:15]} 39. Qf5 {[%clk 0:00:45]}  Rxd1+ {[%clk 0:00:14]} 40. Rxd1 {[%clk 0:00:45]}  Qxf5+ {[%clk 0:00:14]} 41. gxf5 {[%clk 0:00:45]}  Bg5 {[%clk 0:00:14]} 42. Rd6 {[%clk 0:00:44]}  Rxf5 {[%clk 0:00:14]} 43. Rxc6 {[%clk 0:00:44]}  Rf7 {[%clk 0:00:14]} 44. Ne5 {[%clk 0:00:43]}  Re7 {[%clk 0:00:14]} 45. Nf3 {[%clk 0:00:42]}  Bf6 {[%clk 0:00:14]} 46. Kc2 {[%clk 0:00:40]}  h5 {[%clk 0:00:14]} 47. Rc4 {[%clk 0:00:39]}  Kg6 {[%clk 0:00:14]} 48. b4 {[%clk 0:00:37]}  Kf5 {[%clk 0:00:14]} 49. b5 {[%clk 0:00:35]}  Re4 {[%clk 0:00:15]} 50. Kd3 {[%clk 0:00:34]}  Rxc4 {[%clk 0:00:14]} 51. Kxc4 {[%clk 0:00:35]}  Ke4 {[%clk 0:00:14]} 52. Ng1 {[%clk 0:00:33]}  h4 {[%clk 0:00:14]} 53. a4 {[%clk 0:00:32]}  Ke3 {[%clk 0:00:13]} 54. a5 {[%clk 0:00:32]}  Kf2 {[%clk 0:00:11]} 55. Nh3+ {[%clk 0:00:31]}  Kg3 {[%clk 0:00:11]} 56. Ng1 {[%clk 0:00:31]}  Bd8 {[%clk 0:00:11]} 57. b6 {[%clk 0:00:26]}  Bxb6 {[%clk 0:00:09]} 58. axb6 {[%clk 0:00:25]}  axb6 {[%clk 0:00:09]} 59. Kb5 {[%clk 0:00:25]}  Kg2 {[%clk 0:00:09]} 60. Ne2 {[%clk 0:00:25]}  Kf2 {[%clk 0:00:09]} 61. Nf4 {[%clk 0:00:24]}  Kg3 {[%clk 0:00:10]} 62. Ne2+ {[%clk 0:00:23]}  Kf3 {[%clk 0:00:09]} 63. Ng1+ {[%clk 0:00:21]}  Kg2 {[%clk 0:00:10]} 64. Ne2 {[%clk 0:00:22]}  h3 {[%clk 0:00:09]} 65. Nf4+ {[%clk 0:00:22]}  Kg3 {[%clk 0:00:10]} 66. Nxh3 {[%clk 0:00:21]}  Kxh3 {[%clk 0:00:11]} 67. Kxb6 {[%clk 0:00:22]} 1/2-1/2


[Site "https://www.chess.com"]

[Event "Titled Tuesday Blitz March 21 Late 2023"]
[White "Toktomushev, Teimur"]
[Black "Medina Paz, Miguel"]
[WhiteFideId "14176726"]
[BlackFideId "7300379"]
[WhiteElo "2116"]
[BlackElo "2428"]
[Result "0-1"]
[Round "10"]
[TimeControl "180+2"]
[Date "2023.03.21"]
[WhiteClock "0:00:02"]
[BlackClock "0:00:40"]

1. d4 {[%clk 0:03:00]}  e6 {[%clk 0:02:59]} 2. c4 {[%clk 0:03:00]}  Nf6 {[%clk 0:02:59]} 3. Nf3 {[%clk 0:02:59]}  Bb4+ {[%clk 0:02:57]} 4. Bd2 {[%clk 0:02:59]}  Qe7 {[%clk 0:02:56]} 5. g3 {[%clk 0:02:58]}  Nc6 {[%clk 0:02:55]} 6. a3 {[%clk 0:02:46]}  Bxd2+ {[%clk 0:02:54]} 7. Qxd2 {[%clk 0:02:47]}  d6 {[%clk 0:02:42]} 8. Bg2 {[%clk 0:02:46]}  O-O {[%clk 0:02:42]} 9. O-O {[%clk 0:02:45]}  e5 {[%clk 0:02:27]} 10. d5 {[%clk 0:01:47]}  Nb8 {[%clk 0:02:26]} 11. Nc3 {[%clk 0:01:47]}  a5 {[%clk 0:02:23]} 12. e4 {[%clk 0:01:34]}  Na6 {[%clk 0:02:21]} 13. b4 {[%clk 0:01:14]}  Bg4 {[%clk 0:02:16]} 14. Qb2 {[%clk 0:01:02]}  Bxf3 {[%clk 0:02:16]} 15. Bxf3 {[%clk 0:01:03]}  axb4 {[%clk 0:02:10]} 16. axb4 {[%clk 0:01:02]}  c5 {[%clk 0:02:10]} 17. bxc5 {[%clk 0:00:40]}  Nxc5 {[%clk 0:02:10]} 18. Qb6 {[%clk 0:00:36]}  Ra6 {[%clk 0:02:09]} 19. Rxa6 {[%clk 0:00:35]}  bxa6 {[%clk 0:02:10]} 20. Ra1 {[%clk 0:00:24]}  h5 {[%clk 0:02:07]} 21. Na4 {[%clk 0:00:16]}  Nfd7 {[%clk 0:01:27]} 22. Qc7 {[%clk 0:00:13]}  Qf6 {[%clk 0:01:27]} 23. Bg2 {[%clk 0:00:08]}  Nxa4 {[%clk 0:01:26]} 24. Rxa4 {[%clk 0:00:09]}  Nc5 {[%clk 0:01:26]} 25. Ra5 {[%clk 0:00:07]}  Nd3 {[%clk 0:01:21]} 26. Ra2 {[%clk 0:00:05]}  Nc5 {[%clk 0:01:18]} 27. Ra5 {[%clk 0:00:04]}  h4 {[%clk 0:01:15]} 28. gxh4 {[%clk 0:00:02]}  Nd3 {[%clk 0:01:08]} 29. Ra2 {[%clk 0:00:02]}  Nf4 {[%clk 0:01:08]} 30. c5 {[%clk 0:00:01]}  Qxh4 {[%clk 0:00:42]} 31. f3 {[%clk 0:00:02]}  Qe1+ {[%clk 0:00:40]} 32. Bf1 {[%clk 0:00:02]}  Qe3+ {[%clk 0:00:40]} 0-1


[Site "https://www.chess.com"]

[Event "Titled Tuesday Blitz March 21 Late 2023"]
[White "Domingo Nunez, Alejandro"]
[Black "Bolanos, Fernando"]
[WhiteFideId "22245561"]
[BlackFideId "3304094"]
[WhiteElo "2230"]
[BlackElo "2166"]
[Result "1-0"]
[Round "10"]
[TimeControl "180+2"]
[Date "2023.03.21"]
[WhiteClock "0:02:36"]
[BlackClock "0:00:02"]

1. e4 {[%clk 0:03:00]}  c5 {[%clk 0:02:53]} 2. d4 {[%clk 0:03:01]}  cxd4 {[%clk 0:02:53]} 3. c3 {[%clk 0:03:01]}  dxc3 {[%clk 0:02:54]} 4. Nxc3 {[%clk 0:03:02]}  e6 {[%clk 0:02:52]} 5. Nf3 {[%clk 0:03:03]}  Nc6 {[%clk 0:02:53]} 6. Bc4 {[%clk 0:03:03]}  a6 {[%clk 0:02:53]} 7. O-O {[%clk 0:03:03]}  Nge7 {[%clk 0:02:54]} 8. Bg5 {[%clk 0:03:03]}  f6 {[%clk 0:02:54]} 9. Be3 {[%clk 0:03:03]}  Ng6 {[%clk 0:02:55]} 10. Bb3 {[%clk 0:03:01]}  Be7 {[%clk 0:02:29]} 11. Nd5 {[%clk 0:03:00]}  exd5 {[%clk 0:02:27]} 12. exd5 {[%clk 0:03:00]}  Nce5 {[%clk 0:02:27]} 13. d6 {[%clk 0:02:58]}  Bxd6 {[%clk 0:00:06]} 14. Qxd6 {[%clk 0:02:56]}  Qe7 {[%clk 0:00:07]} 15. Qd5 {[%clk 0:02:37]}  Nxf3+ {[%clk 0:00:02]} 16. Qxf3 {[%clk 0:02:37]}  Ne5 {[%clk 0:00:02]} 17. Qd5 {[%clk 0:02:36]} 1-0


[Site "https://www.chess.com"]

[Event "Titled Tuesday Blitz March 21 Late 2023"]
[White "Rios Escobar, Adan"]
[Black "Kashefi, Amir Hosein"]
[WhiteFideId "3403645"]
[BlackFideId "12557935"]
[WhiteElo "2406"]
[BlackElo "2078"]
[Result "0-1"]
[Round "10"]
[TimeControl "180+2"]
[Date "2023.03.21"]
[WhiteClock "0:02:02"]
[BlackClock "0:01:42"]

1. d4 {[%clk 0:03:00]}  d5 {[%clk 0:02:59]} 2. g3 {[%clk 0:03:00]}  Nf6 {[%clk 0:02:59]} 3. Nf3 {[%clk 0:02:59]}  c6 {[%clk 0:02:59]} 4. c4 {[%clk 0:02:57]}  Bf5 {[%clk 0:02:58]} 5. Nc3 {[%clk 0:02:58]}  e6 {[%clk 0:02:59]} 6. Nh4 {[%clk 0:02:57]}  Bg6 {[%clk 0:02:57]} 7. Qb3 {[%clk 0:02:56]}  Qb6 {[%clk 0:02:55]} 8. Nxg6 {[%clk 0:02:56]}  hxg6 {[%clk 0:02:55]} 9. c5 {[%clk 0:02:57]}  Qc7 {[%clk 0:02:54]} 10. Bg2 {[%clk 0:02:55]}  Nbd7 {[%clk 0:02:54]} 11. Bf4 {[%clk 0:02:56]}  e5 {[%clk 0:02:47]} 12. dxe5 {[%clk 0:02:56]}  Nxe5 {[%clk 0:02:46]} 13. Bxe5 {[%clk 0:02:52]}  Qxe5 {[%clk 0:02:42]} 14. Qxb7 {[%clk 0:02:52]}  Rb8 {[%clk 0:02:35]} 15. Qxc6+ {[%clk 0:02:52]}  Nd7 {[%clk 0:02:36]} 16. Nxd5 {[%clk 0:02:32]}  Bxc5 {[%clk 0:02:24]} 17. Nc7+ {[%clk 0:02:25]}  Ke7 {[%clk 0:02:22]} 18. Nd5+ {[%clk 0:02:13]}  Ke8 {[%clk 0:02:16]} 19. O-O-O {[%clk 0:02:02]}  Qxb2# {[%clk 0:01:42]} 0-1


[Site "https://www.chess.com"]